Cogmind - Beta 15 @@@ ROGUE MODE // 2025.09.11 @ 16:09:02 Player: potator Result: Destroyed by 92-MVF(R) with Subdweller Machine Gun Performance ------------- Evolutions (0) 0 Regions Visited (3) 600 Robots Destroyed (32) 160 Value Destroyed (590) 590 Prototype IDs (0) 0 Alien Tech Used (0) 0 Bonus (0) 0 TOTAL SCORE: 1350 Bonus ------- None Cogmind --------- Core Integrity 0/250 Matter 134/300 Energy 246/265 System Corruption 0% Temperature Cool (0) Movement Treading (260) Ox1 Location -10/Subcaves Parts ------- > --- POWER (1) -------- Reinforced Ion Engine > --- PROPULSION (2) --- Spiked Treads > --- UTILITY (2) ------ Improved Heat Sink Small Storage Unit > --- WEAPON (2) ------- Medium Laser Subdweller Beam Cannon > --- INVENTORY (8) ---- Heat Sink Disposable Heat Sink Disposable Heat Sink Medium Battery (150) Grenade Launcher Rocket Launcher Signal Generator Peak State ------------ > --- POWER ------------ Reinforced Ion Engine > --- PROPULSION ------- Spiked Treads > --- UTILITY ---------- Improved Heat Sink Small Storage Unit > --- WEAPON ----------- Subdweller Laser Heavy Assault Rifle > --- INVENTORY -------- Heat Sink Disposable Heat Sink Disposable Heat Sink Medium Battery Assault Rifle Grenade Launcher Rocket Launcher Signal Generator [Rating: 13] Favorites ----------- Power Reinforced Ion Engine Engine Reinforced Ion Engine Propulsion Light Treads Treads Light Treads Utility Small Storage Unit Device Improved Heat Sink Storage Small Storage Unit Weapon Medium Laser Energy Gun Medium Laser Energy Cannon Subdweller Beam Cannon Ballistic Gun Heavy Assault Rifle Launcher Rocket Launcher Build | -11 -10 -10 -10 ------- Run | Yrd Mat Min Sub Slots Evolved . | . . . . Power . | . . . . Propulsion . | . . . . Utility . | . . . . Weapon . | . . . . Parts Attached 19 | 6 6 4 3 Power 2 | 1 1 . . Engine 2 | 1 1 . . Core . | . . . . Reactor . | . . . . Propulsion 4 | 2 1 . 1 Treads 4 | 2 1 . 1 Leg . | . . . . Wheel . | . . . . Hover . | . . . . Flight . | . . . . Utility 4 | 1 2 1 . Device 3 | . 2 1 . Storage 1 | 1 . . . Processor . | . . . . Hackware . | . . . . Protection . | . . . . Artifact . | . . . . Weapon 9 | 2 2 3 2 Energy Gun 5 | 2 2 . 1 Energy Cannon 1 | . . . 1 Ballistic Gun 2 | . . 2 . Ballistic Cannon . | . . . . Launcher 1 | . . 1 . Special Weapon . | . . . . Impact Weapon . | . . . . Slashing Weapon . | . . . . Piercing Weapon . | . . . . Special Melee Weapon . | . . . . Unidentified Prototypes . | . . . . Parts Lost 4 | . 1 2 1 Power . | . . . . Propulsion 3 | . 1 1 1 Utility . | . . . . Weapon 1 | . . 1 . Highest Loss Streak 1 | . 1 1 1 To Critical Strikes . | . . . . Average Backups 6 | 2 5 6 6 Power . | . . . . Propulsion . | 1 . . . Utility 3 | . 2 3 4 Weapon 2 | . 2 2 2 Tool/Special . | . . . . Unused Backups 8 | 1 2 1 4 Power 1 | 1 . . . Propulsion . | . . . . Utility 3 | . . . 3 Weapon 4 | . 2 1 1 Tool/Special . | . . . . Average Slot Usage (%) 91 | . 96 91 79 Engine 14 | . 14 14 14 Treads 21 | . 27 19 8 Device 12 | . 10 14 14 Storage 14 | . 14 14 14 Energy Gun 20 | . 28 14 13 Ballistic Gun 5 | . . 7 12 Launcher 2 | . . 5 1 Peak Build Rating 13 | 6 8 12 13 Average Rating 9 | 1 7 10 11 On Entrance 6 | . 6 8 11 Naked Turns . | . . . . Heaviest Build 26 | 14 20 22 26 Greatest Support 40 | 40 40 40 20 Greatest Overweight (x) 7 | . . 1 7 Average Overweight (x) . | . . . 2 Largest Inventory Capacity 8 | 8 8 8 8 Average Capacity 7 | 5 8 8 8 Most Carried 8 | 5 8 8 8 Average Carried 6 | 3 5 7 7 Final Capacity 8 | 8 8 8 8 Final Carried 8 | . 6 8 7 Class Distribution -------------------- 100% | Mutant Dominant Class ---------------- Mutant | -10/Materials Mutant | -10/Mines Mutant | -10/Subcaves Resources | -11 -10 -10 -10 ----------- Run | Yrd Mat Min Sub Matter Collected 522 | 171 159 152 40 Remotely . | . . . . Salvage Created 782 | . 474 269 39 Parts 48 | . 29 12 7 Haulers Intercepted . | . . . . Recyclers Shooed 1 | . 1 . . Parts Field Recycled . | . . . . Retrieved Matter . | . . . . Parts Self-Destructed 6 | . . . 6 Prevented . | . . . . Kills | -11 -10 -10 -10 ------- Run | Yrd Mat Min Sub Combat Hostiles Destroyed 29 | . 14 11 4 Guns 23 | . 14 9 . AOE 6 | . . 2 4 Classes Destroyed 8 | . 4 3 1 Worker 2 | . 2 . . Recycler 1 | . . 1 . Turret 2 | . . . 2 Watcher 2 | . 2 . . Swarmer 16 | . 6 6 4 Grunt 8 | . 8 . . Sentry 1 | . . 1 . Assembled 4 | . . 4 . Best Kill Streak 4 | . 3 3 4 Combat Bots Only 4 | . 3 3 4 Max Kills in Single Turn 4 | . 1 1 4 Gunslinging . | . . . . Exploded 4 | . . 1 4 Melee . | . . . . Uniques/NPCs Destroyed . | . . . . Combat | -11 -10 -10 -10 -------- Run | Yrd Mat Min Sub Hostile Shots Fired 202 | . 64 52 86 Missed 72 | . 17 18 37 Hits 130 | . 47 34 49 Projectile 130 | . 47 34 49 Critical Strikes 1 | . . . 1 Damage Taken 1247 | . 523 432 292 Core 253 | . 45 109 99 Absorbed by Shields . | . . . . Core Remaining (%) 100 | 100 . . . Volleys Fired 92 | . 47 29 16 Largest 2 | . 2 2 2 Hottest 130 | . 100 83 130 Shots Fired 177 | . 94 52 31 Gun 162 | . 94 47 21 Cannon 3 | . . . 3 Launcher 12 | . . 5 7 Special . | . . . . Kinetic 37 | . . 19 18 Thermal 114 | . 80 28 6 Explosive 12 | . . 5 7 Electromagnetic 14 | . 14 . . Robot Hit Streak 16 | . 16 7 3 Robot Miss Streak 3 | . 3 3 3 Penetration Max . | . . . . Secondary Targets 4 | . 2 2 . Max Gunslinging Chain 1 | . 1 1 . Shots Hit Robots 106 | . 60 30 16 Core Hits 59 | . 27 21 11 Critical Kills . | . . . . Critical Parts Destroyed . | . . . . Critical Strikes 8 | . 5 3 . Burn 8 | . 5 3 . Melee Attacks . | . . . . Impact . | . . . . Slashing . | . . . . Piercing . | . . . . Sneak Attacks . | . . . . Combat Hostiles . | . . . . Follow-up Attacks . | . . . . Damage Inflicted 1602 | . 738 431 433 Guns 1137 | . 725 336 76 Cannons . | . . . . Explosions 452 | . . 95 357 Melee . | . . . . Ramming 13 | . 13 . . Kinetic 209 | . . 146 63 Thermal 865 | . 662 190 13 Explosive 452 | . . 95 357 Electromagnetic 63 | . 63 . . Impact . | . . . . Slashing . | . . . . Piercing . | . . . . Highest Corruption . | . . . . Average Corruption . | . . . . Corruption Purged . | . . . . Corruption Blocked . | . . . . Overload Shots . | . . . . Overflow Damage . | . . . . Projectiles . | . . . . Explosions . | . . . . Melee . | . . . . Knockbacks 1 | . 1 . . Impact 1 | . 1 . . Kinetic . | . . . . Secondary . | . . . . Self-Inflicted Damage 82 | . . 54 28 Shots 2 | . . 1 1 Rammed . | . . . . Targets Rammed 1 | . 1 . . Kicked . | . . . . Crushed 1 | . 1 . . Highest Temperature 219 | . 219 15 . Average Temperature 69 | . 72 7 . Received Heat Transfer 393 | . 174 45 174 Siege Activations . | . . . . Martial Activations . | . . . . Shielding Activations . | . . . . Robots Disrupted . | . . . . Combat Hostiles . | . . . . Robots Corrupted . | . . . . Combat Hostiles . | . . . . Parts Fried 1 | . 1 . . Impact Corruptions . | . . . . Robots Melted . | . . . . Combat Hostiles . | . . . . Parts Melted 16 | . 12 4 . Heat Transferred 3145 | . 2331 777 37 Parts Sabotaged . | . . . . Parts Stolen . | . . . . Parts Stripped . | . . . . Power Chain Reactions . | . . . . Alert | -11 -10 -10 -10 ------- Run | Yrd Mat Min Sub Maximum Alert Level . | . . . . Low Security (%) 100 | 100 100 100 . Level 1 . | . . . . Level 2 . | . . . . Level 3 . | . . . . Level 4 . | . . . . Level 5 . | . . . . High Security . | . . . . Max Security . | . . . . Peak Influence 77 | . 77 70 . Initial 21 | . . 21 . Average 15 | . 20 10 . Influence Increases 758 | . 388 205 165 Destroy 0b10 Robot/C 540 | . 280 140 120 Destroy 0b10 Robot/NC 25 | . 20 5 . Destroy Leader 64 | . 44 20 . Successful Hack 12 | . 12 . . Destroy Structure 42 | . 2 40 . Lose Combat Pursuer 75 | . 30 . 45 Influence Decreases 758 | . 334 259 165 Entered New Map 33 | . . 33 . Time Decay 709 | . 329 225 155 Lost Part 16 | . 5 1 10 Squads Dispatched 1 | . 1 . . Investigation 1 | . 1 . . Extermination . | . . . . Reinforcement . | . . . . Assault . | . . . . Garrison . | . . . . Intercept . | . . . . Searches Triggered . | . . . . Construction Impeded . | . . . . Haulers Reinforced . | . . . . Active Scanning Responses . | . . . . Cargo Convoy Interrupts . | . . . . Stealth | -11 -10 -10 -10 --------- Run | Yrd Mat Min Sub Distress Signals 2 | . 2 . . Communications Jammed . | . . . . Distress Signals . | . . . . Times Spotted 39 | . 20 11 8 Peak Tracking Total 6 | . 3 3 6 Tactical Retreats 3 | . 2 . 1 Traps | -11 -10 -10 -10 ------- Run | Yrd Mat Min Sub Traps Triggered 3 | . 3 . . Indirectly . | . . . . Trap Hack Attempts . | . . . . Triggered . | . . . . Disarmed . | . . . . Reprogrammed . | . . . . Reused . | . . . . Traps Extracted . | . . . . Installed . | . . . . Triggered . | . . . . Machines | -11 -10 -10 -10 ---------- Run | Yrd Mat Min Sub Machines Disabled 3 | . . . 3 Max in Single Turn 2 | . . . 2 Machines Repaired . | . . . . Machines Dismantled . | . . . . Machines Sabotaged . | . . . . Overloaded Fab Kills . | . . . . Hacking | -11 -10 -10 -10 --------- Run | Yrd Mat Min Sub Machines Accessed 6 | . 6 . . Terminals 5 | . 5 . . Fabricators . | . . . . Repair Stations . | . . . . Recycling Units 1 | . 1 . . Scanalyzers . | . . . . Garrison Access . | . . . . Total Hacks 12 | . 12 . . Successful 5 | . 5 . . Failed 7 | . 7 . . Catastrophic . | . . . . Database Lockouts . | . . . . Manual . | . . . . Terminals 11 | . 11 . . Fabricators . | . . . . Repair Stations . | . . . . Recycling Units 1 | . 1 . . Scanalyzers . | . . . . Garrison Access . | . . . . Terminal Hacks 4 | . 4 . . Branch Access Points 1 | . 1 . . Locate Traps 1 | . 1 . . Dispatch Records 1 | . 1 . . Zone Layout 1 | . 1 . . Fabricator Hacks . | . . . . Repair Station Hacks . | . . . . Recycling Unit Hacks 1 | . 1 . . Report Inventory 1 | . 1 . . Scanalyzer . | . . . . Garrison Access Hacks . | . . . . Unauthorized Hacks . | . . . . Terminals . | . . . . Fabricators . | . . . . Repair Stations . | . . . . Recycling Units . | . . . . Scanalyzers . | . . . . Garrison Access . | . . . . Data Cores Recovered . | . . . . Used . | . . . . Hacking Detections 3 | . 3 . . Full Trace Events . | . . . . Feedback Events . | . . . . Feedback Blocked . | . . . . Robot Schematics Acquired . | . . . . Robots Built . | . . . . Authchips . | . . . . Time . | . . . . Total Robot Build Rating . | . . . . Part Schematics Acquired . | . . . . Parts Built . | . . . . Authchips . | . . . . Time . | . . . . Total Part Build Rating . | . . . . Parts Repaired . | . . . . Time . | . . . . Parts Recycled . | . . . . Recycled Matter . | . . . . Retrieved Matter . | . . . . Retrieved Components . | . . . . Parts Scanalyzed . | . . . . Part Schematics Acquired . | . . . . Parts Damaged . | . . . . Bothacking | -11 -10 -10 -10 ------------ Run | Yrd Mat Min Sub Used RIF Installer . | . . . . Robots Hacked . | . . . . Non-combat . | . . . . Combat . | . . . . Robot Hacks Applied . | . . . . Relay Couplers Released . | . . . . Fabnet Peak Effective % . | . . . . Robots Rewired . | . . . . Allies Hacked . | . . . . Hacks Repelled . | . . . . Allies | -11 -10 -10 -10 -------- Run | Yrd Mat Min Sub Total Allies . | . . . . Largest Group . | . . . . Highest-Rated Group . | . . . . Highest-Rated Ally . | . . . . Total Orders . | . . . . Ally Attacks . | . . . . Total Damage . | . . . . Kills . | . . . . Allies Corrupted . | . . . . Allies Melted . | . . . . Intel | -11 -10 -10 -10 ------- Run | Yrd Mat Min Sub Active Infowar (turns) . | . . . . Robot Analysis Total . | . . . . Derelict Logs Recovered 2 | . . 2 . Drone Launches . | . . . . Drone Recoveries . | . . . . Exploration | -11 -10 -10 -10 ------------- Run | Yrd Mat Min Sub Turns Passed 3028 | 33 1310 1181 504 Spaces Moved 1315 | 36 617 506 156 Core 74 | 33 . . 41 Treads 1241 | 3 617 506 115 Legs . | . . . . Wheels . | . . . . Hover . | . . . . Flight . | . . . . Fastest Speed 50 | 50 160 160 160 Average Speed 188 | 59 160 202 283 Slowest Speed 400 | 160 160 240 400 Overloaded Moves . | . . . . Propulsion Burnouts . | . . . . Robots Hopped . | . . . . Potential Cave-ins . | . . . . Cave-ins Triggered . | . . . . Exploration Rate (%) 51 | 3 88 99 17 Regions Visited 3 Branch Regions 2 Pre-discovered Areas 1 | . . 1 . Known Exits Taken 1 | . 1 . . Unknown Exits Taken 2 | 1 . 1 . Scrap Searched 1 | . . 1 . Spaces Dug . | . . . . Terrain Destroyed 94 | . . 55 39 Melee . | . . . . Projectile 2 | . . . 2 AOE 92 | . . 55 37 Terrain Rammed . | . . . . Walls Destroyed . | . . . . Machines Disabled . | . . . . Actions | -11 -10 -10 -10 --------- Run | Yrd Mat Min Sub Total 1691 | 48 846 609 188 Wait 222 | . 156 64 2 Move 1312 | 35 616 505 156 Hop . | . . . . Pick Up 26 | 6 13 5 2 Fast Attach 4 | 1 1 . 2 Attach 9 | 5 3 1 . Detach . | . . . . Swap 12 | . 3 3 6 Drop 13 | 1 6 2 4 Fire 92 | . 47 29 16 Melee . | . . . . Ram . | . . . . Kick . | . . . . Crush 1 | . 1 . . Escape Stasis . | . . . . Rewire . | . . . . Trap . | . . . . Miscellaneous . | . . . . Route ------- -11/Scrapyard -10/Materials (discovered 5 exits: [*Mat x3] / *Min x2) -10/Mines (discovered 3 exits: [*Mat x2] / [*Sub]) -10/Subcaves (discovered 2 exits: [*Mat] / [*Rec]) History --------- Turn | Location | Event 20 | -11/Scrapyard | Discovered new exit (range 13) 34 | -11/Scrapyard | Entered Materials 294 | -10/Materials | Discovered new exit (range 15) 313 | -10/Materials | Build established: Mutant 529 | -10/Materials | Discovered new exit (range 16) 788 | -10/Materials | Discovered new exit (range 16) 798 | -10/Materials | Identified exit to Mines 1344 | -10/Materials | Entered Mines 1427 | -10/Mines | Discovered new exit (range 8) 1430 | -10/Mines | Met a Derelict testing a Signal Generator 1433 | -10/Mines | Learned Materials stockpile data 1440 | -10/Mines | Found Signal Generator 1480 | -10/Mines | Learned location of Storage (-7) 1777 | -10/Mines | Assembled infested the area 1782 | -10/Mines | Assisted by a Guerilla fighting off Assembled 1805 | -10/Mines | Learned location of 1 exit from Materials 1812 | -10/Mines | Found a hidden stash of uninstalled traps 1823 | -10/Mines | Received a Rocket Launcher from a helpful Derelict 1865 | -10/Mines | Discovered new exit (range 4) 2384 | -10/Mines | Core integrity fell below 50% 2392 | -10/Mines | Discovered new exit (range 10) 2525 | -10/Mines | Entered Subcaves 2559 | -10/Subcaves | Discovered new exit (range 15) 2571 | -10/Subcaves | Core integrity fell below 20% 2686 | -10/Subcaves | Shifting Twisted Machinery released Spk. Treads 2963 | -10/Subcaves | Discovered new exit (range 13) 3029 | -10/Subcaves | Destroyed by 92-MVF(R) with Subdweller Machine Gun Last Messages --------------- The unstable cave ceiling collapses. Spk. Treads falls loose from the Twisted Machinery. Acquired Spk. Treads. OG-F6Q(O) collects matter. OG-F6Q(O) puts together Sub. Laser. Dropped Med. Laser. Acquired Sub. Laser. Dropped Hvy. Assault Rifle. Acquired Med. Laser. Dropped Assault Rifle. Subatomizers dissect the Hvy. Assault Rifle. Acquired 9 matter. Acquired 14 matter. Acquired 5 matter. EXIT=FOUND Acquired Sub. Beam Cannon. Dropped Sub. Laser. Acquired 11 matter. Map ----- +----------------------------------------------------+ | ???????????????????????????????????????????? | | ???????????????????????????????????????????? | | ???????????????????????????????????????????? | | ???????????????????????????????????????????? | | ???????????????????????????????????????????? | | ???????????????????????????????????????????? | | ???????????????????????????????????????????? | | ???????????????????????????????????????????? | | ???????????????????????????????????????????? | | ???????????????????????????????????????????? | | ???????????????????????????????????????????? | | ???????????????????????????????????????????? | | ??????????????????????########?????????????? | | ??????????????????????# ## #?????????????? | | ??????????????????????# ##??#####?????? | | ??????????????????????# #### ##????? | | ?????????????????????## ## % % #????? | | ??????????????????#### ###??? | | ??????????????????# ### #### | | ??????????????????# ##?# ## | | ??????????????????## ##??### ## ### | | ???????????????????####?????#### ## | | ???????????????####????????????# ### | | ???????????????# ###?????????## ##### | | ???????????????# ########??# ##?# | | ???????????????# @ # # # #??# ### | | ?????????????###; #??## ### | | ?????????????# #??## ## ## | | ?????????????## ;# ## #### ## | | ???????????#??#R ## # # ## ### ] | | ???????????# # #?# | | ???????????? ##< < [ ##?# | | ???????????#??## ### ##??###### | | ??????????????# ## ## ##????????## | | ??????????????# ?# #####??????????# | | ??????????????## ??# ##??????????????## | | ???????????????##??## #????????????????# | | ????????????????????# #????????????????? | | ????????????????????# % ###????????????????? | | ????????????????????# ##??????????????????? | | ????????????????????####???????????????????? | | ???????????????????????????????????????????? | | ???????????????????????????????????????????? | | ???????????????????????????????????????????? | | ???????????????????????????????????????????? | | ???????????????????????????????????????????? | | ???????????????????????????????????????????? | | ???????????????????????????????????????????? | | ???????????????????????????????????????????? | | ???????????????????????????????????????????? | +----------------------------------------------------+ Best States ------------- Heat Dissipation 39 Energy Generation 12 Energy Capacity 265 Matter Stores 300 Matter Capacity 300 Sight Range 16 Terrain Scan Density 10 Evasion (%) 50 Recoil Reduction 2 Item Schematics ----------------- None Robot Schematics ------------------ None Fabricated ------------ Nothing Repaired ---------- Nothing Alien Tech Used ----------------- None Achievements -------------- None Challenges ------------ None Game ------ Seed PortableTachyonShield Manual? 0 Play Time 00:21:31 Cumulative 24.6 hours Start 2025.09.11 @ 15:49:05 End 2025.09.11 @ 16:09:02 Sessions 1 Manual Loads 0 Difficulty Rogue Special Mode None Game No. 53 Rogue 53 Adventurer 0 Explorer 0 Win Type - Total 0 Types 0/0/0/0/0/0/0/0/0/0 Lore% 21 Gallery% 19 Achievement% 17 Wizard Run 0 Options --------- Layout 1 ASCII 0 Keyboard 0 Movement Mouse Keybinds 0 Fullscreen 2 Font 24/Smallcaps Map View 50x35 Zoom Use 0% Tactical HUD 0 Map Filters NONE Filters NONE Steam X RUN: 0114870e-bf8d-4100-8c18-348743547ca9